bitfinex/quotes_ETHUSD_20251127
["timestamp","ask_amount","ask_price","bid_price","bid_amount"]
[1764222683288,1.24049476,3028.1,3028.0,0.4825]
[1764222683494,1.24049476,3028.1,3028.0,0.9771]
[1764222683854,1.03049476,3028.1,3028.0,0.9771]
[1764222684055,1.24049476,3028.1,3028.0,0.9771]
[1764222684770,1.03049476,3028.1,3028.0,0.9771]
[1764222685174,1.24049476,3028.1,3028.0,0.9771]
[1764222685568,1.03049476,3028.1,3028.0,0.9771]
[1764222685891,1.24049476,3028.1,3028.0,0.9771]
[1764222686092,1.24049476,3028.1,3028.0,0.4825]
[1764222686267,1.24049476,3028.1,3028.0,0.001]
[1764222686467,1.27399476,3028.1,3028.0,0.001]
[1764222687193,1.24049476,3028.1,3028.0,0.001]
[1764222687358,1.24049476,3028.1,3028.0,0.4825]
[1764222687552,1.03049476,3028.1,3028.0,0.4825]
[1764222687781,1.24049476,3028.1,3028.0,0.001]
[1764222689255,1.24049476,3028.1,3028.0,0.4825]
[1764222689456,1.24049476,3028.1,3028.0,0.9771]
[1764222689757,0.51490065,3028.1,3028.0,0.4825]
[1764222689951,0.51490065,3028.1,3028.0,0.001]
[1764222690382,1.00286891,3028.1,3028.0,0.001]
[1764222690761,0.54840065,3028.1,3028.0,0.001]
[1764222691587,0.33840065,3028.1,3028.0,0.001]
[1764222691792,0.21740065,3028.1,3028.0,0.001]
[1764222693585,0.21,3028.1,3028.0,0.001]
[1764222694390,0.21,3028.1,3028.0,0.4825]
[1764222694591,0.002,3028.3,3028.0,0.9771]
[1764222694762,0.002,3028.3,3028.2,0.6733]
[1764222695164,0.002,3028.3,3028.2,4.47019179]
[1764222695361,0.002,3028.3,3028.2,5.24755214]
[1764222702518,0.002,3028.3,3028.2,9.05755214]
[1764222702885,0.002,3028.3,3028.2,7.82566165]
[1764222712020,0.002,3028.3,3028.2,11.63566165]
[1764222712717,0.002,3028.3,3028.2,9.05755214]
[1764222712884,0.002,3028.3,3028.0,3.30349139]
[1764222713090,0.002,3028.3,3028.1,0.4819]
[1764222713618,0.002,3028.3,3028.2,3.76469179]
[1764222713983,0.002,3028.3,3028.2,4.24659179]
[1764222716686,0.002,3028.3,3028.2,3.30229179]
[1764222716989,0.0094,3028.3,3028.1,3.30236464]
[1764222717824,0.0094,3028.3,3028.0,0.001]
[1764222718121,0.0094,3028.3,3028.0,3.811]
[1764222719793,0.0094,3028.3,3028.1,3.30240084]
[1764222720195,0.0148,3028.2,3028.0,0.001]
[1764222720496,0.30517014,3028.2,3028.0,0.001]
[1764222720714,0.002,3028.3,3028.0,0.4829]
[1764222721018,0.30719075,3028.3,3028.0,7.0879198]
[1764222721188,0.30519075,3028.2,3028.0,3.7854099]
[1764222721589,0.002,3028.3,3028.1,3.35013232]
[1764222721815,0.002,3028.3,3028.2,3.76469179]
[1764222721992,0.002,3028.3,3028.2,4.24659179]
[1764222723493,0.002,3028.3,3028.2,3.30229179]
[1764222723912,0.002,3028.3,3028.2,3.76469179]
[1764222724120,0.002,3028.3,3028.2,5.07248209]
[1764222725417,0.002,3028.3,3028.2,8.88248209]
[1764222726331,0.002,3028.3,3028.2,8.40058209]
[1764222726531,0.002,3028.3,3028.2,8.88248209]
[1764222727127,0.002,3028.3,3028.2,11.28831441]
[1764222727324,0.002,3028.3,3028.2,8.88248209]
[1764222727728,0.002,3028.3,3028.2,9.09248209]
[1764222729017,0.002,3028.3,3028.2,8.88248209]
[1764222730030,0.002,3028.3,3028.2,7.93818209]
[1764222730341,0.002,3028.3,3028.2,8.42398209]
[1764222730633,0.002,3028.3,3028.2,8.91708209]
[1764222733228,0.0094,3028.3,3028.2,3.81]
[1764222733425,0.31475751,3028.3,3028.2,3.81]
[1764222733634,0.0094,3028.3,3028.2,7.11229179]
[1764222733824,0.002,3028.3,3028.2,7.11229179]
[1764222734204,0.30735751,3028.3,3028.2,7.11229179]
[1764222734403,0.30735849,3028.3,3028.2,7.11229179]
[1764222734941,0.002,3028.3,3028.2,7.11229179]
[1764222735740,0.30735849,3028.3,3028.2,3.30229179]
[1764222735900,0.002,3028.3,3028.1,3.81]
[1764222736105,0.002,3028.3,3028.1,7.11237484]
[1764222737809,0.0074,3028.2,3028.1,7.11237484]
[1764222738134,0.31286267,3028.2,3028.1,7.11237484]
[1764222738759,0.31286267,3028.2,3028.1,3.81]
[1764222739540,0.30546267,3028.2,3028.1,3.81]
[1764222740357,0.31286267,3028.2,3028.1,3.81]
[1764222740960,0.30546267,3028.2,3028.1,3.81]
[1764222741665,0.30546267,3028.2,3028.0,3.30348132]
[1764222741829,0.30546267,3028.1,3028.0,3.30348132]
[1764222742030,0.30546267,3028.2,3028.0,3.30348132]
[1764222742230,0.30556712,3028.1,3028.0,3.30348132]
[1764222742961,0.30556712,3028.1,3028.0,0.001]
[1764222743333,0.30556712,3028.1,3028.0,0.4709]
[1764222743659,0.30556712,3028.2,3028.0,0.9695]
[1764222743958,0.002,3028.3,3028.2,0.4699]
[1764222744261,0.30749069,3028.3,3028.2,3.77219179]
[1764222744459,0.30749069,3028.3,3028.2,4.27079179]
[1764222745656,0.30749069,3028.3,3028.2,3.77219179]
[1764222748262,0.31489069,3028.3,3028.0,3.30349578]
[1764222748431,0.30549069,3028.2,3028.0,3.30349578]
[1764222748627,0.0094,3028.3,3028.0,3.30349578]
[1764222748942,0.30534633,3028.2,3028.0,3.80209578]
[1764222749141,0.002,3028.3,3028.0,3.80209578]
[1764222749353,0.30533725,3028.2,3028.0,3.80209578]
[1764222749547,0.002,3028.3,3028.0,3.80209578]
[1764222749781,0.30536197,3028.2,3028.0,3.80209578]
[1764222749965,0.002,3028.3,3028.0,3.80209578]
[1764222750154,0.30536262,3028.2,3028.0,3.80209578]
[1764222750333,0.002,3028.3,3028.0,3.80209578]
[1764222750534,0.30536611,3028.2,3028.0,3.80209578]
[1764222750756,0.002,3028.3,3028.0,3.80209578]
[1764222750958,0.30536626,3028.2,3028.0,3.80209578]
[1764222751165,0.002,3028.3,3028.0,3.80209578]
[1764222751365,0.30538893,3028.2,3028.0,3.80209578]
[1764222751566,0.002,3028.2,3028.0,3.80209578]
[1764222755075,0.002,3028.2,3028.0,0.001]
[1764222757975,0.002,3028.2,3028.1,0.4699]
[1764222758143,0.002,3028.2,3028.1,3.37433232]
[1764222759455,0.002,3028.2,3028.1,6.67673316]
[1764222760565,0.002,3028.2,3028.1,6.63903316]
[1764222762676,0.002,3028.2,3028.1,4.23320084]
[1764222762975,0.002,3028.2,3028.1,6.63903316]
[1764222763164,0.002,3028.2,3028.1,7.96355]
[1764222768662,0.002,3028.2,3028.1,11.77355]
[1764222771766,0.0621,3028.2,3028.1,7.11240084]
[1764222771967,0.002,3028.2,3028.1,8.04800084]
[1764222778211,0.002,3028.2,3028.1,8.77359495]
[1764222778370,0.002,3028.2,3028.1,9.95978768]
[1764222778572,0.002,3028.2,3028.1,12.07308047]
[1764222778800,0.002,3028.2,3028.1,12.20529766]
[1764222779202,0.002,3028.2,3028.1,12.61080166]
[1764222781486,0.002,3028.2,3028.1,12.610858]
[1764222783280,0.002,3028.2,3028.1,11.42460893]
[1764222784393,0.002,3028.2,3028.1,11.01910493]
[1764222784713,0.002,3028.2,3028.1,11.42460893]
[1764222786136,0.002,3028.2,3028.1,11.63360893]
[1764222788214,1e-08,3028.3,3028.2,2.06669811]
[1764222788387,1e-08,3028.3,3028.2,5.8894641]
[1764222789304,1e-08,3028.3,3028.2,4.10932084]
[1764222789506,1e-08,3028.3,3028.2,11.22161263]
[1764222790807,1e-08,3028.3,3028.2,12.40763403]
[1764222791306,1e-08,3028.9,3028.8,0.4979]
[1764222791508,0.30592635,3029.9,3029.1,1.13109811]
[1764222791841,0.1691,3030.0,3029.8,2.57796594]
[1764222792190,0.1691,3030.2,3029.9,0.4979]
[1764222792521,0.1691,3030.2,3030.1,2.57796594]
[1764222792723,0.1691,3030.2,3029.2,2.80900727]
[1764222792724,0.0541,3030.0,3028.6,1.18562961]
[1764222792892,0.2216,3028.7,3028.1,6.60480168]
[1764222793230,0.72559411,3029.6,3028.2,3.23854611]
[1764222793386,0.30570634,3029.5,3028.2,0.66058017]
[1764222793590,0.0872,3028.3,3028.2,3.96287196]
[1764222793901,0.0872,3028.3,3028.2,3.30229179]
[1764222795997,0.5454,3028.3,3028.2,3.30229179]
[1764222797216,0.0872,3028.3,3028.2,3.30229179]
[1764222797722,0.0872,3028.3,3028.1,3.30240084]
[1764222797919,0.0046,3028.2,3028.1,3.30240084]
[1764222798607,0.1691,3028.4,3028.1,7.08690168]
[1764222798791,0.1691,3028.4,3028.1,7.90048938]
[1764222798989,0.1691,3028.4,3028.1,7.41838938]
[1764222799325,0.631,3028.7,3028.1,10.72079022]
[1764222799531,0.631,3028.7,3028.1,7.41838938]
[1764222799699,0.4619,3028.6,3028.1,7.41838938]
[1764222799899,0.0872,3028.2,3028.1,4.11598854]
[1764222800233,0.0872,3028.2,3028.1,3.30240084]
[1764222801719,0.5454,3028.2,3028.0,0.001]
[1764222801915,0.0046,3028.1,3028.0,0.001]
[1764222802311,0.4665,3028.1,3028.0,0.001]
[1764222803630,0.0046,3028.1,3028.0,0.001]
[1764222804213,0.4665,3028.1,3028.0,0.001]
[1764222804798,0.0046,3028.1,3028.0,0.001]
[1764222806933,0.002,3028.2,3028.0,0.9516]
[1764222807229,0.002,3028.2,3028.1,0.4821]
[1764222808437,0.002,3028.2,3028.1,3.78450084]
[1764222808733,0.002,3028.2,3028.1,6.36246678]
[1764222808935,0.002,3028.2,3028.1,8.03581553]
[1764222814142,0.002,3028.2,3028.1,7.56731553]
[1764222814447,0.002,3028.2,3028.1,8.03581553]
[1764222818653,0.002,3028.2,3028.1,7.37591553]
[1764222819151,0.002,3028.2,3028.1,11.18591553]
[1764222819349,0.002,3028.2,3028.1,11.65441553]
[1764222819651,0.002,3028.2,3028.1,11.18591553]
[1764222820433,0.002,3028.2,3028.1,11.66431553]
[1764222822756,0.002,3028.2,3028.1,11.18591553]
[1764222823459,0.002,3028.2,3028.1,11.39491553]
[1764222825642,0.0635,3028.2,3028.1,10.91281553]
[1764222826160,0.002,3028.2,3028.1,10.91281553]
[1764222826358,0.0678,3028.2,3028.1,8.33484959]
[1764222827060,0.002,3028.2,3028.1,10.91281553]
[1764222827230,0.002,3028.2,3028.1,11.36421553]
[1764222827431,0.002,3028.2,3028.1,11.84261553]
[1764222829762,0.002,3028.2,3028.1,11.17391553]
[1764222831265,0.0635,3028.2,3028.1,10.70381553]
[1764222832561,0.002,3028.2,3028.1,10.70381553]
[1764222834637,0.002,3028.2,3028.1,10.53209278]
[1764222835238,0.002,3028.2,3028.1,11.67089278]
[1764222836642,0.002,3028.2,3028.1,11.00219278]
[1764222838473,0.002,3028.2,3028.1,11.48059278]
[1764222838681,0.002,3028.2,3027.6,1.18272961]
[1764222838682,6.60480168,3028.1,3027.6,1.18272961]
[1764222838976,6.60480168,3028.1,3027.2,0.001]
[1764222838977,5.53808049,3027.7,3027.2,0.001]
[1764222839156,0.405504,3027.0,3026.7,0.001]
[1764222839349,0.405504,3027.0,3026.5,0.001]
[1764222839350,0.72559411,3026.7,3026.5,0.001]
[1764222839564,2.79865366,3026.6,3026.5,0.001]
[1764222839744,0.39241047,3026.6,3026.5,0.001]
[1764222839944,1.06041047,3026.6,3026.5,0.001]
[1764222840177,2.11163325,3026.6,3026.5,0.001]
[1764222841473,1.40707584,3026.6,3026.5,0.001]
[1764222841846,2.83570876,3026.6,3026.5,0.001]
[1764222842175,2.83570876,3026.6,3026.0,0.001]
[1764222842176,0.0046,3026.3,3026.0,0.001]
[1764222842383,3.3968373,3026.2,3026.0,0.001]
[1764222842543,4.01700939,3026.2,3026.0,0.001]
[1764222843471,3.80800939,3026.2,3026.0,0.001]
[1764222843674,4.01700939,3026.2,3026.0,0.001]
[1764222843883,3.8846373,3026.2,3026.0,0.001]
[1764222844077,4.3061885,3026.2,3026.0,0.001]
[1764222844385,1.89994531,3026.2,3026.0,0.001]
[1764222844550,1.47839411,3026.2,3026.0,0.001]
[1764222847467,0.7528,3026.2,3026.0,0.001]
[1764222850261,0.265,3026.2,3026.0,0.001]
[1764222852402,0.5441,3026.2,3026.0,0.001]
[1764222852698,0.7531,3026.2,3026.0,0.001]
[1764222853193,0.056,3026.2,3026.0,0.001]
[1764222853377,0.265,3026.2,3026.0,0.001]
[1764222853571,0.056,3026.2,3026.0,0.001]
[1764222853794,0.209,3026.2,3026.0,0.001]
[1764222854216,1.04400489,3027.8,3026.1,3.71770356]
[1764222854378,0.4951,3027.4,3026.5,0.4654]
[1764222854572,2.40624319,3026.9,3026.1,0.1849]
[1764222854919,0.8682,3026.8,3026.1,0.001]
[1764222855302,0.8682,3026.8,3026.1,1.23326488]
[1764222855805,0.8682,3026.8,3026.1,3.63950807]
[1764222856097,0.8682,3026.8,3026.2,6.6089485]
[1764222857274,0.3731,3026.8,3026.3,2.40624319]
[1764222857570,0.3731,3026.8,3026.3,2.89994319]
[1764222857769,0.3731,3026.8,3026.3,1.91675848]
[1764222857994,0.3731,3026.8,3026.4,6.60851176]
[1764222861074,0.8682,3026.8,3026.4,6.60851176]
[1764222862103,0.8682,3026.8,3026.2,6.6089485]
[1764222862883,0.8682,3026.8,3026.2,7.1026485]
[1764222863975,0.8682,3026.8,3026.2,6.6089485]
[1764222864275,0.4951,3026.7,3026.2,6.6089485]
[1764222865375,0.72559411,3027.0,3026.3,2.89994319]
[1764222865376,0.4951,3027.0,3026.3,2.89994319]
[1764222865572,0.209,3026.7,3026.6,0.4654]
[1764222865772,0.209,3026.8,3026.6,0.4654]
[1764222866304,0.209,3026.8,3026.7,3.30392837]
[1764222866981,0.209,3026.8,3026.7,3.26425837]
[1764222867705,0.209,3026.8,3026.7,3.72965837]
[1764222868080,0.209,3026.9,3026.7,7.03358674]
[1764222868281,0.91310865,3026.9,3026.8,0.9591]
[1764222868480,0.30623517,3026.9,3026.8,0.9591]
[1764222868781,1.01034382,3026.9,3026.8,0.4654]
[1764222870114,1.01034382,3026.9,3026.7,6.56818674]
[1764222870416,0.30623517,3026.8,3026.7,3.26425837]
[1764222870617,0.30623517,3026.8,3026.7,4.68186287]
[1764222870787,0.30623517,3026.8,3026.7,5.14726287]
[1764222870990,0.30623517,3026.8,3026.7,3.72965837]
[1764222871311,0.30623517,3026.8,3026.7,4.22335837]
[1764222871930,5.17302155,3026.8,3026.1,0.001]
[1764222872086,5.59188049,3026.2,3026.1,0.001]
[1764222872417,1.13109811,3026.1,3025.4,0.001]
[1764222872611,4.40337141,3026.1,3025.4,0.001]
[1764222872792,4.40298634,3026.1,3025.4,0.001]
[1764222873110,4.40214925,3026.1,3025.5,0.001]
[1764222873281,2.64056808,3026.1,3025.5,0.001]
[1764222873479,3.38881867,3026.1,3025.5,0.001]
[1764222874389,6.69340212,3026.1,3025.5,0.001]
[1764222874999,4.36593814,3026.1,3025.5,0.001]
[1764222875221,8.90314131,3026.1,3025.5,0.001]
[1764222876310,10.07617253,3026.1,3025.5,0.001]
[1764222876621,11.7148885,3026.1,3025.5,0.001]
[1764222877196,12.88790013,3026.1,3025.5,0.001]
[1764222878023,10.48165694,3026.1,3025.5,0.001]
[1764222879394,5.59955786,3026.1,3025.5,0.001]
[1764222879693,1.97262056,3026.1,3025.5,0.001]
[1764222879926,5.77270401,3026.1,3025.5,0.001]
[1764222880098,9.78379822,3026.1,3025.5,0.001]
[1764222880304,6.49829812,3026.1,3025.5,0.001]
[1764222881325,6.90380212,3026.1,3025.5,0.001]
[1764222883529,7.7824469,3026.1,3025.5,0.001]
[1764222887308,9.31004531,3026.1,3025.5,0.001]
[1764222887717,10.58212011,3026.1,3025.5,0.001]
[1764222888110,10.48305694,3026.1,3025.5,0.001]
[1764222890036,10.48505694,3026.1,3025.5,0.001]
[1764222890344,10.48505694,3026.1,3025.6,0.001]
[1764222890712,6.90580212,3026.1,3025.6,0.001]
[1764222891848,1.76462056,3026.1,3025.6,0.001]
[1764222892005,6.93719661,3026.1,3025.6,0.001]
[1764222892209,8.15829072,3026.1,3025.6,0.001]
[1764222894546,8.33580763,3026.1,3025.6,0.001]
[1764222897048,5.25654753,3026.1,3025.6,0.001]
[1764222897341,5.25654753,3026.1,3025.6,0.4571]
[1764222897915,5.04654753,3026.1,3025.6,0.4571]
[1764222898116,5.25654753,3026.1,3025.6,0.4571]
[1764222898312,6.13504868,3026.1,3025.6,0.4571]
[1764222899973,5.92504868,3026.1,3025.6,0.4571]
[1764222900138,2.82656523,3026.1,3026.0,0.4946]
[1764222900313,1.94806408,3026.1,3026.0,0.4946]
[1764222900640,1.73806408,3026.1,3026.0,4.25539266]
[1764222900840,0.5178501,3026.1,3026.0,4.25539266]
[1764222901235,0.3078501,3026.1,3026.0,4.25539266]
[1764222901435,0.5178501,3026.1,3026.0,4.25539266]
[1764222901849,1.22380181,3026.1,3026.0,4.25539266]
[1764222902016,0.5178501,3026.1,3026.0,4.25539266]
[1764222902617,0.3078501,3026.1,3026.0,4.25539266]
[1764222902941,0.3078501,3026.1,3026.0,5.01151264]
[1764222903119,0.002,3026.1,3026.0,5.01151264]
[1764222904253,0.002,3026.1,3026.0,7.59527274]
[1764222907040,0.002,3026.1,3026.0,5.01151264]
[1764222910803,0.002,3026.1,3026.0,7.59527274]
[1764222917275,0.002,3026.1,3026.0,12.13086685]
[1764222918660,0.002,3026.5,3026.1,1.13109811]
[1764222918886,0.002,3026.5,3026.4,6.96211998]
[1764222919188,0.002,3026.5,3026.0,0.001]
[1764222919189,0.5473,3026.5,3026.0,0.001]
[1764222919358,0.0842,3026.1,3026.0,0.001]
[1764222919789,3.85465421,3026.1,3026.0,0.001]
[1764222920093,4.6488299,3026.1,3026.0,0.001]
[1764222920589,2.0650698,3026.1,3026.0,0.001]
[1764222920760,1.57648431,3026.1,3026.0,0.001]
[1764222921290,1.11538431,3026.1,3026.0,0.001]
[1764222922055,1.32538431,3026.1,3026.0,0.001]
[1764222924291,1.78648431,3026.1,3026.0,0.001]
[1764222924503,1.78848431,3026.1,3026.0,0.001]
[1764222925671,1.7888948,3026.1,3026.0,0.001]
[1764222926089,1.3277948,3026.1,3026.0,0.001]
[1764222926510,2.03305778,3026.1,3026.0,0.001]
[1764222927215,2.74357356,3026.1,3026.0,0.001]
[1764222927395,8.63191711,3026.1,3026.0,0.001]
[1764222927721,2.53357356,3026.1,3026.0,0.001]
[1764222928007,2.74257356,3026.1,3026.0,0.001]
[1764222928218,3.14807756,3026.1,3026.0,0.001]
[1764222928370,7.33388099,3026.1,3026.0,0.001]
[1764222928565,7.62567264,3026.1,3026.0,0.001]
[1764222928770,6.45266101,3026.1,3026.0,0.001]
[1764222929006,8.21424218,3026.1,3026.0,0.001]
[1764222929175,8.31330535,3026.1,3026.0,0.001]
[1764222930298,6.55172418,3026.1,3026.0,0.001]
[1764222931092,6.24366101,3026.1,3026.0,0.001]
[1764222931302,7.62683522,3026.1,3026.0,0.001]
[1764222934316,7.72589839,3026.1,3026.0,0.001]
[1764222935516,6.55172418,3026.1,3026.0,0.001]
[1764222936326,7.72390582,3026.1,3026.0,0.001]
[1764222936615,6.55172418,3026.1,3026.0,0.001]
[1764222937122,6.9821026,3026.1,3026.0,0.001]
[1764222937431,6.9821026,3026.1,3025.7,0.001]
[1764222937432,0.10366317,3025.9,3025.7,0.001]
[1764222937634,0.0054,3025.6,3023.4,3.30748636]
[1764222937934,6.07647077,3025.5,3024.2,0.4876]
[1764222938230,4.80582188,3025.5,3024.4,0.4876]
[1764222938432,5.47992188,3025.5,3024.4,3.79403826]
[1764222938613,6.14507264,3025.5,3024.4,3.79403826]
[1764222939610,10.11830371,3025.5,3024.5,3.79391161]
[1764222939809,10.11830371,3025.5,3024.7,0.4876]
[1764222939810,10.32830371,3025.5,3024.7,0.4876]
[1764222940640,10.32830371,3025.5,3024.0,0.1903]
[1764222940845,10.32830371,3025.5,3024.4,0.4944]
[1764222941008,10.32830371,3025.5,3025.0,0.001]
[1764222941912,9.45031144,3025.5,3025.0,0.001]
[1764222942112,10.32781512,3025.5,3025.0,0.001]
[1764222942845,10.62189716,3025.5,3025.0,0.001]
[1764222943044,1.13109811,3025.0,3024.7,0.001]
[1764222943213,3.98962138,3024.8,3024.7,0.001]
[1764222943416,5.47047136,3024.8,3024.7,0.001]
[1764222943609,5.95647136,3024.8,3024.7,0.001]
[1764222943812,9.65487959,3024.8,3024.7,0.001]
[1764222944022,10.82646531,3024.8,3024.7,0.001]
[1764222944524,11.66113525,3024.8,3024.7,0.001]
[1764222945132,10.48785923,3024.8,3024.7,0.001]
[1764222946222,12.24523781,3024.8,3024.7,0.001]
[1764222946629,15.72423781,3024.8,3024.7,0.001]
[1764222947727,7.85265429,3024.8,3024.7,0.001]
[1764222947928,6.40433888,3024.8,3024.7,0.001]
[1764222948124,10.29235523,3024.8,3024.7,0.001]
[1764222948328,10.69785923,3024.8,3024.7,0.001]
[1764222948829,12.45523781,3024.8,3024.7,0.001]
[1764222949154,15.93423781,3024.8,3024.7,0.001]
[1764222949452,12.24523781,3024.8,3024.7,0.001]
[1764222949637,12.62802779,3024.8,3024.7,0.001]
[1764222950330,12.62791455,3024.8,3024.7,0.001]
[1764222951648,12.62788105,3024.8,3024.7,0.001]
[1764222951845,12.52881788,3024.8,3024.7,0.001]
[1764222952155,10.7714393,3024.8,3024.7,0.001]
[1764222953959,10.87050247,3024.8,3024.7,0.001]
[1764222954163,10.7714393,3024.8,3024.7,0.001]
[1764222954358,12.52881788,3024.8,3024.7,0.001]
[1764222954864,10.30185299,3024.8,3024.7,0.001]
[1764222955363,12.05923157,3024.8,3024.7,0.001]
[1764222956159,12.15829474,3024.8,3024.7,0.001]
[1764222956530,11.96796871,3024.8,3024.7,0.001]
[1764222957035,10.21059013,3024.8,3024.7,0.001]
[1764222958258,16.82259753,3024.8,3024.1,0.1966]
[1764222958438,0.87773591,3024.2,3024.1,0.1966]
[1764222958640,1.39189956,3024.2,3024.1,0.1966]
[1764222958848,1.39189956,3024.2,3024.1,1.174]
[1764222959046,0.405504,3024.1,3022.8,0.2]
[1764222959361,0.30416365,3024.0,3023.9,0.4944]
[1764222959565,0.51416365,3024.0,3023.9,0.9774]
[1764222959782,1.21942663,3024.0,3023.9,0.9774]
[1764222959944,0.51416365,3024.0,3023.9,0.9774]
[1764222960566,3.82104195,3024.0,3023.9,0.9774]
[1764222960767,5.67821953,3024.0,3023.9,0.483]
[1764222961377,2.37134123,3024.0,3023.9,0.9774]
[1764222961673,1.94502074,3024.0,3023.9,0.9774]
[1764222962169,5.25189904,3024.0,3023.9,0.9774]
[1764222962870,1.94502074,3024.0,3023.9,0.9774]
[1764222963342,5.25189904,3024.0,3023.9,0.9774]
[1764222964370,6.12963495,3024.0,3023.9,0.9774]
[1764222964741,2.82275665,3024.0,3023.9,0.9774]
[1764222964962,6.12963495,3024.0,3023.9,0.9774]
[1764222965750,0.72559411,3023.9,3023.0,3.50795994]
[1764222965954,1.00942663,3023.8,3023.3,0.4944]
[1764222966153,1.00942663,3023.7,3023.3,0.4944]
[1764222966354,1.21942663,3023.6,3023.3,0.4944]
[1764222966557,1.00942663,3023.5,3023.3,3.80202975]
[1764222966751,0.30416365,3023.4,3023.3,0.4944]
[1764222966951,0.30416365,3023.4,3023.0,3.50796686]
[1764222967173,0.30416365,3023.3,3023.0,3.50796686]
[1764222967478,0.51416365,3023.2,3023.1,0.4944]
[1764222967889,0.51416365,3023.2,3023.1,3.79838856]
[1764222968192,0.51416365,3023.2,3023.1,4.28138856]
[1764222968364,0.51416365,3023.2,3023.1,7.58925134]
[1764222968759,0.30416365,3023.2,3023.1,7.58925134]
[1764222968963,0.21,3023.2,3023.1,7.58925134]
[1764222969166,0.51622402,3023.2,3023.1,7.58925134]
[1764222969486,0.21,3023.2,3023.1,7.58925134]
[1764222969691,0.30623251,3023.2,3023.1,7.58925134]
[1764222969883,0.21,3023.2,3023.1,7.58925134]
[1764222970280,0.51643067,3023.2,3023.1,7.58925134]
[1764222972380,1.2224999,3023.2,3023.1,7.58925134]
[1764222976603,0.30643067,3023.2,3023.1,7.58925134]
[1764222976803,0.21,3023.2,3023.1,7.58925134]
[1764222977004,0.51718949,3023.2,3023.1,5.17493025]
[1764222978282,1.22490675,3023.2,3023.1,0.9447]
[1764222978882,1.01490675,3023.2,3023.1,0.9447]
[1764222979082,1.22490675,3023.2,3023.1,0.9447]
[1764222980114,1.22490675,3023.2,3023.1,4.25256278]
[1764222980709,1.01490675,3023.2,3023.1,4.25256278]
[1764222981011,1.22490675,3023.2,3023.1,5.270159]
[1764222981588,0.51718949,3023.2,3023.1,5.270159]
[1764222981997,1.22490675,3023.2,3023.1,5.270159]
[1764222982397,0.51718949,3023.2,3023.1,5.270159]
[1764222985640,0.30718949,3023.2,3023.1,5.270159]
[1764222985938,0.51718949,3023.2,3023.1,5.270159]
[1764222986464,0.30718949,3023.2,3023.1,5.270159]
[1764222986614,0.21,3023.5,3023.1,8.57802178]
[1764222986812,0.30715951,3023.4,3023.2,1.91182274]
[1764222987121,0.21,3023.5,3023.4,0.4772]
[1764222987329,0.51712874,3023.5,3023.4,0.4772]
[1764222987640,0.51712874,3023.5,3023.0,0.6627]
[1764222987641,1.31569127,3023.5,3023.0,0.6627]
[1764222987939,1.01479127,3023.4,3023.0,0.6627]
[1764222988142,1.81688548,3023.5,3023.0,0.6627]
[1764222988143,1.01479127,3023.3,3023.0,0.6627]
[1764222988346,1.01479127,3023.2,3023.0,0.6627]
[1764222988528,0.51712874,3023.1,3023.0,0.6627]
[1764222988731,0.51712874,3023.1,3023.0,3.50897221]
[1764222989030,0.51712874,3023.1,3023.0,4.44787221]
[1764222989634,0.51712874,3023.1,3023.0,1.1399]
[1764222989836,0.51712874,3023.1,3023.0,4.44787221]
[1764222990348,0.51712874,3023.1,3023.0,0.4782]
[1764222990563,0.97682874,3023.1,3023.0,0.001]
[1764222990858,1.68417646,3023.1,3023.0,0.001]
[1764222993449,1.85259411,3023.1,3023.0,0.001]
[1764222995262,1.22447646,3023.1,3023.0,0.9399]
[1764222995555,0.51712874,3023.1,3023.0,0.9399]
[1764222996058,1.22447646,3023.1,3023.0,0.4782]
[1764222996454,0.51712874,3023.1,3023.0,0.4782]
[1764222996954,1.22447646,3023.1,3023.0,0.4782]
[1764222997151,1.01447646,3023.1,3023.0,0.9399]
[1764222997354,0.30712874,3023.1,3023.0,0.9399]
[1764222997557,0.51712874,3023.1,3023.0,0.9399]
[1764222997784,1.22447646,3023.1,3023.0,0.4782]
[1764222998287,0.51712874,3023.1,3023.0,0.4782]
[1764222998495,1.22447646,3023.1,3023.0,0.001]
[1764222998685,1.59851265,3023.1,3023.0,0.001]
[1764222999666,8.90629463,3023.1,3023.0,0.001]
[1764222999971,4.28526281,3023.1,3023.0,0.001]
[1764223000179,2.23320676,3023.1,3023.0,0.001]
[1764223000985,2.02320676,3023.1,3023.0,0.001]
[1764223001180,1.74007057,3023.1,3023.0,0.4756]
[1764223001385,1.74007057,3023.1,3023.0,0.001]
[1764223001386,2.02167057,3023.1,3023.0,0.001]
[1764223001586,2.02109486,3023.1,3023.0,0.001]
[1764223002186,3.31109486,3023.1,3022.7,0.001]
[1764223002386,3.31109486,3023.1,3022.1,0.2098]
[1764223002387,0.1644,3022.7,3022.1,0.2098]
[1764223002588,1.22390075,3022.6,3022.2,0.4727]
[1764223002792,1.01390075,3022.5,3022.2,0.4727]
[1764223002969,0.30655303,3022.4,3022.2,0.4727]
[1764223003170,0.30655303,3022.3,3022.2,0.4727]
[1764223003381,0.30655303,3022.3,3022.1,0.2098]
[1764223003582,0.51655303,3022.2,3022.1,0.016]
[1764223003976,0.51655303,3022.2,3022.1,0.4906]
[1764223004180,0.51655303,3022.2,3022.1,1.1571]
[1764223004581,0.21,3022.2,3022.1,1.1571]
[1764223004901,0.70544243,3022.6,3022.1,4.46605734]
[1764223005204,1.22165442,3022.5,3022.2,0.9473]
[1764223005506,0.30621199,3022.4,3022.2,0.9473]
[1764223005683,0.30621199,3022.3,3022.2,0.9473]
[1764223005885,0.879104,3022.2,3020.8,0.4727]
[1764223006202,0.51721199,3022.1,3021.1,0.1938]
[1764223006377,0.30621199,3022.0,3021.2,3.78264249]
[1764223006576,0.30621199,3021.9,3021.2,0.4727]